[Event "*** Titled Tuesday Blitz"]
[Site "Chess.com"]
[Date "2020.11.10"]
[Round "10"]
[White "mjray79"]
[Black "monalize"]
[Result "0-1"]
[WhiteElo "2462"]
[BlackElo "2317"]
[TimeControl "180+1"]
[EndTime "11:58:21 PST"]
[Termination "monalize won by resignation"]

1. d4 {[%clk 0:03:00.9]} 1... Nf6 {[%clk 0:02:58.4]} 2. c4 {[%clk 0:03:01.2]}
2... d6 {[%clk 0:02:58.6]} 3. Nc3 {[%clk 0:02:59]} 3... e5 {[%clk 0:02:58.4]} 4.
d5 {[%clk 0:02:59.1]} 4... g6 {[%clk 0:02:56.7]} 5. e4 {[%clk 0:02:57.9]} 5...
Bg7 {[%clk 0:02:56.1]} 6. Nge2 {[%clk 0:02:56.5]} 6... O-O {[%clk 0:02:55.8]} 7.
Ng3 {[%clk 0:02:56.5]} 7... Ne8 {[%clk 0:02:49.2]} 8. Be2 {[%clk 0:02:55.7]}
8... a5 {[%clk 0:02:47.9]} 9. h4 {[%clk 0:02:54.1]} 9... h5 {[%clk 0:02:46.6]}
10. Bg5 {[%clk 0:02:52.8]} 10... Qd7 {[%clk 0:02:31.8]} 11. Qd2 {[%clk
0:02:49.3]} 11... Na6 {[%clk 0:02:30.1]} 12. Be3 {[%clk 0:02:47.6]} 12... Nc5
{[%clk 0:02:28]} 13. Bh6 {[%clk 0:02:46.3]} 13... c6 {[%clk 0:02:22.3]} 14. Bxg7
{[%clk 0:02:45.1]} 14... Nxg7 {[%clk 0:01:48.9]} 15. dxc6 {[%clk 0:02:43.1]}
15... bxc6 {[%clk 0:01:48.1]} 16. Rd1 {[%clk 0:02:43.5]} 16... Rd8 {[%clk
0:01:45.3]} 17. Qg5 {[%clk 0:02:34.1]} 17... Nce6 {[%clk 0:01:43.7]} 18. Qe3
{[%clk 0:02:29.3]} 18... Nd4 {[%clk 0:01:37.3]} 19. Bf3 {[%clk 0:02:21.7]} 19...
Nc2+ {[%clk 0:01:35.8]} 20. Kd2 {[%clk 0:02:21.6]} 20... Nxe3 {[%clk 0:01:35.4]}
21. Kxe3 {[%clk 0:02:22.5]} 21... Qa7+ {[%clk 0:01:33.8]} 22. Ke2 {[%clk
0:02:20.5]} 22... Ne6 {[%clk 0:01:33.7]} 23. Rd2 {[%clk 0:02:20]} 23... a4
{[%clk 0:01:27.2]} 0-1

[Event "*** Titled Tuesday Blitz"]
[Site "Chess.com"]
[Date "2020.11.10"]
[Round "10"]
[White "politeplayer"]
[Black "igorknyazev"]
[Result "0-1"]
[WhiteElo "2234"]
[BlackElo "2042"]
[TimeControl "180+1"]
[EndTime "11:58:44 PST"]
[Termination "igorknyazev won by resignation"]

1. e4 {[%clk 0:03:00.9]} 1... e5 {[%clk 0:02:34.6]} 2. Nf3 {[%clk 0:02:55.5]}
2... Nf6 {[%clk 0:02:34.3]} 3. Nxe5 {[%clk 0:02:52.8]} 3... Nxe4 {[%clk
0:02:33.4]} 4. Qe2 {[%clk 0:02:50.5]} 4... Qe7 {[%clk 0:02:33.4]} 5. Qxe4 {[%clk
0:02:49]} 5... d6 {[%clk 0:02:33.4]} 6. d4 {[%clk 0:02:47.9]} 6... dxe5 {[%clk
0:02:33.7]} 7. Qxe5 {[%clk 0:02:45.8]} 7... Qxe5+ {[%clk 0:02:33.2]} 8. dxe5
{[%clk 0:02:45.6]} 8... Bf5 {[%clk 0:02:33.2]} 9. Bd3 {[%clk 0:02:42.6]} 9...
Bxd3 {[%clk 0:02:29.8]} 10. cxd3 {[%clk 0:02:42.3]} 10... Nc6 {[%clk 0:02:30.3]}
11. O-O {[%clk 0:02:40.5]} 11... O-O-O {[%clk 0:02:26.7]} 12. Nc3 {[%clk
0:02:24.9]} 12... Nxe5 {[%clk 0:02:23.9]} 13. Be3 {[%clk 0:02:15.6]} 13... Nxd3
{[%clk 0:02:16.5]} 14. Nb5 {[%clk 0:02:07]} 14... a6 {[%clk 0:02:12.5]} 15. Nc3
{[%clk 0:01:48.3]} 15... Nxb2 {[%clk 0:02:07.4]} 16. Rab1 {[%clk 0:01:47.9]}
16... Nc4 {[%clk 0:02:02.5]} 17. Bf4 {[%clk 0:01:46.1]} 17... Bd6 {[%clk
0:01:59.5]} 18. Bxd6 {[%clk 0:01:38.7]} 18... Rxd6 {[%clk 0:01:59.7]} 19. Rfe1
{[%clk 0:01:37.1]} 19... Rhd8 {[%clk 0:01:54.9]} 20. Re7 {[%clk 0:01:35.4]}
20... R6d7 {[%clk 0:01:54.1]} 21. Re4 {[%clk 0:01:32.1]} 21... Nd2 {[%clk
0:01:53.1]} 0-1

[Event "*** Titled Tuesday Blitz"]
[Site "Chess.com"]
[Date "2020.11.10"]
[Round "10"]
[White "Zhuu96"]
[Black "Mazetovic"]
[Result "0-1"]
[WhiteElo "2876"]
[BlackElo "2768"]
[TimeControl "180+1"]
[EndTime "11:59:28 PST"]
[Termination "Mazetovic won by resignation"]

1. e4 {[%clk 0:02:56.5]} 1... c5 {[%clk 0:02:59.4]} 2. Nf3 {[%clk 0:02:56.5]}
2... Nc6 {[%clk 0:02:59.5]} 3. Bb5 {[%clk 0:02:55.8]} 3... e6 {[%clk 0:02:59.5]}
4. Qe2 {[%clk 0:02:53.1]} 4... Nge7 {[%clk 0:02:58.9]} 5. c3 {[%clk 0:02:51.3]}
5... a6 {[%clk 0:02:58]} 6. Ba4 {[%clk 0:02:51.1]} 6... b5 {[%clk 0:02:58.5]} 7.
Bc2 {[%clk 0:02:51.2]} 7... d5 {[%clk 0:02:58.8]} 8. exd5 {[%clk 0:02:49.2]}
8... Nxd5 {[%clk 0:02:58.3]} 9. O-O {[%clk 0:02:48.9]} 9... Be7 {[%clk
0:02:54.2]} 10. Rd1 {[%clk 0:02:42.2]} 10... Bf6 {[%clk 0:02:31.1]} 11. d3
{[%clk 0:02:39.3]} 11... O-O {[%clk 0:02:30.7]} 12. Nbd2 {[%clk 0:02:39.4]}
12... Bxc3 {[%clk 0:01:55.2]} 13. bxc3 {[%clk 0:02:38.7]} 13... Nxc3 {[%clk
0:01:55.4]} 14. Qe1 {[%clk 0:02:39.1]} 14... Nb4 {[%clk 0:01:50.2]} 15. Bb1
{[%clk 0:02:32.6]} 15... Bb7 {[%clk 0:01:30.7]} 16. Nb3 {[%clk 0:02:26.2]} 16...
Nxd1 {[%clk 0:01:26.2]} 17. Qxd1 {[%clk 0:02:26]} 17... Rc8 {[%clk 0:01:11.6]}
18. Ba3 {[%clk 0:02:14.3]} 18... Qf6 {[%clk 0:01:07.2]} 19. Nxc5 {[%clk
0:02:11]} 19... Rxc5 {[%clk 0:00:30.9]} 20. Bxb4 {[%clk 0:02:09.6]} 20... Bxf3
{[%clk 0:00:30.9]} 21. gxf3 {[%clk 0:02:06.7]} 21... Rg5+ {[%clk 0:00:30.5]} 0-1

[Event "*** Titled Tuesday Blitz"]
[Site "Chess.com"]
[Date "2020.11.10"]
[Round "10"]
[White "Nikithebest"]
[Black "narutosmith"]
[Result "1-0"]
[WhiteElo "2445"]
[BlackElo "2311"]
[TimeControl "180+1"]
[EndTime "11:59:34 PST"]
[Termination "Nikithebest won by resignation"]

1. e4 {[%clk 0:03:00.9]} 1... c6 {[%clk 0:02:59.9]} 2. d4 {[%clk 0:03:00.5]}
2... d5 {[%clk 0:03:00.8]} 3. f3 {[%clk 0:03:01.3]} 3... g6 {[%clk 0:02:52.7]}
4. Nc3 {[%clk 0:03:00.5]} 4... Bg7 {[%clk 0:02:49.6]} 5. Be3 {[%clk 0:03:00.3]}
5... dxe4 {[%clk 0:02:40]} 6. fxe4 {[%clk 0:02:58]} 6... e5 {[%clk 0:02:38.4]}
7. Nf3 {[%clk 0:02:48.3]} 7... exd4 {[%clk 0:02:37.1]} 8. Nxd4 {[%clk
0:02:40.5]} 8... Ne7 {[%clk 0:02:36.3]} 9. Bc4 {[%clk 0:02:38.2]} 9... O-O
{[%clk 0:02:35.6]} 10. Qd2 {[%clk 0:02:37.9]} 10... b5 {[%clk 0:02:29.7]} 11.
Bb3 {[%clk 0:02:36]} 11... b4 {[%clk 0:02:28.1]} 12. Na4 {[%clk 0:02:30]} 12...
Qa5 {[%clk 0:02:16.1]} 13. O-O-O {[%clk 0:02:27.1]} 13... c5 {[%clk 0:01:49.6]}
14. Nxc5 {[%clk 0:02:24.9]} 14... Qxc5 {[%clk 0:01:49.6]} 15. Nf5 {[%clk
0:02:23.3]} 15... Bxb2+ {[%clk 0:01:39.2]} 16. Kxb2 {[%clk 0:02:20.7]} 16...
Qc3+ {[%clk 0:01:37.8]} 17. Kb1 {[%clk 0:02:13.7]} 17... Nxf5 {[%clk 0:01:32]}
18. exf5 {[%clk 0:02:10.3]} 18... Bxf5 {[%clk 0:01:31.1]} 19. Qf2 {[%clk
0:02:02.7]} 19... Nc6 {[%clk 0:01:13.4]} 20. Bc1 {[%clk 0:02:01.8]} 20... Qf6
{[%clk 0:00:35.9]} 21. g4 {[%clk 0:01:58.3]} 1-0

[Event "*** Titled Tuesday Blitz"]
[Site "Chess.com"]
[Date "2020.11.10"]
[Round "10"]
[White "LyonBeast"]
[Black "Paralinch"]
[Result "1-0"]
[WhiteElo "3075"]
[BlackElo "2861"]
[TimeControl "180+1"]
[EndTime "11:59:36 PST"]
[Termination "LyonBeast won by resignation"]

1. d4 {[%clk 0:03:00.9]} 1... d5 {[%clk 0:02:59.9]} 2. Bf4 {[%clk 0:02:58.9]}
2... c5 {[%clk 0:03:00.2]} 3. e3 {[%clk 0:02:53.5]} 3... Nc6 {[%clk 0:03:00.4]}
4. c3 {[%clk 0:02:53.4]} 4... Nf6 {[%clk 0:03:00.4]} 5. Nf3 {[%clk 0:02:53.5]}
5... Qb6 {[%clk 0:02:59.6]} 6. Qb3 {[%clk 0:02:49.8]} 6... c4 {[%clk 0:02:59.7]}
7. Qc2 {[%clk 0:02:50.4]} 7... Bf5 {[%clk 0:03:00]} 8. Qc1 {[%clk 0:02:51.1]}
8... e6 {[%clk 0:03:00.5]} 9. Nbd2 {[%clk 0:02:49.9]} 9... Be7 {[%clk
0:02:58.7]} 10. Nh4 {[%clk 0:02:48.2]} 10... O-O {[%clk 0:02:51.5]} 11. Be2
{[%clk 0:02:44.5]} 11... Rfc8 {[%clk 0:02:47.6]} 12. Nxf5 {[%clk 0:02:39.9]}
12... exf5 {[%clk 0:02:47.6]} 13. Qc2 {[%clk 0:02:37.6]} 13... g6 {[%clk
0:02:45.7]} 14. h3 {[%clk 0:02:38.2]} 14... h5 {[%clk 0:02:42.6]} 15. Rg1 {[%clk
0:02:24.9]} 15... Qd8 {[%clk 0:02:36.6]} 16. g4 {[%clk 0:02:24.3]} 16... fxg4
{[%clk 0:02:12]} 17. hxg4 {[%clk 0:02:25.2]} 17... hxg4 {[%clk 0:02:12.9]} 18.
Bxg4 {[%clk 0:02:24.4]} 18... Nxg4 {[%clk 0:02:13.3]} 19. Rxg4 {[%clk
0:02:25.3]} 19... Qd7 {[%clk 0:01:57.4]} 20. Rxg6+ {[%clk 0:02:06.5]} 20... fxg6
{[%clk 0:01:58.3]} 21. Qxg6+ {[%clk 0:02:06.9]} 21... Kh8 {[%clk 0:01:58.9]} 22.
Qh5+ {[%clk 0:02:01.9]} 22... Kg8 {[%clk 0:01:58.8]} 23. Ke2 {[%clk 0:01:49.3]}
23... Bf6 {[%clk 0:01:41.3]} 24. Rg1+ {[%clk 0:01:49.6]} 24... Bg7 {[%clk
0:01:40.3]} 25. Bh6 {[%clk 0:01:48.8]} 25... Rc7 {[%clk 0:01:29.2]} 26. Bxg7
{[%clk 0:01:46.2]} 26... Qxg7 {[%clk 0:01:30.1]} 27. Qxd5+ {[%clk 0:01:46.4]}
27... Kf8 {[%clk 0:01:27.8]} 28. Rxg7 {[%clk 0:01:46.4]} 28... Rxg7 {[%clk
0:01:28.7]} 29. Nxc4 {[%clk 0:01:46.2]} 29... Rd8 {[%clk 0:01:29.2]} 30. Qf5+
{[%clk 0:01:45.4]} 30... Rf7 {[%clk 0:01:29.6]} 31. Qc5+ {[%clk 0:01:45]} 31...
Kg8 {[%clk 0:01:29.2]} 32. Ne5 {[%clk 0:01:40.8]} 32... Rf5 {[%clk 0:01:23.7]}
33. Qc4+ {[%clk 0:01:40.5]} 33... Kg7 {[%clk 0:01:23.3]} 34. Nxc6 {[%clk
0:01:41]} 34... bxc6 {[%clk 0:01:23.9]} 35. Qxc6 {[%clk 0:01:41.2]} 35... Rf7
{[%clk 0:01:24.3]} 36. c4 {[%clk 0:01:40]} 1-0

[Event "*** Titled Tuesday Blitz"]
[Site "Chess.com"]
[Date "2020.11.10"]
[Round "10"]
[White "Shushik"]
[Black "CM_rui"]
[Result "0-1"]
[WhiteElo "2248"]
[BlackElo "2400"]
[TimeControl "180+1"]
[EndTime "11:59:43 PST"]
[Termination "CM_rui won by resignation"]

1. e4 {[%clk 0:03:00.9]} 1... e5 {[%clk 0:02:59.7]} 2. Nf3 {[%clk 0:03:00.9]}
2... Nc6 {[%clk 0:02:59.9]} 3. Bc4 {[%clk 0:03:00.9]} 3... Bc5 {[%clk
0:02:59.2]} 4. c3 {[%clk 0:03:01.3]} 4... Nf6 {[%clk 0:02:59.5]} 5. d4 {[%clk
0:03:01.5]} 5... exd4 {[%clk 0:03:00.4]} 6. e5 {[%clk 0:03:01.7]} 6... d5 {[%clk
0:02:49.4]} 7. Bb5 {[%clk 0:03:01.7]} 7... Ne4 {[%clk 0:02:48.9]} 8. cxd4 {[%clk
0:03:02.1]} 8... Bb4+ {[%clk 0:02:40.5]} 9. Bd2 {[%clk 0:03:01.8]} 9... Nxd2
{[%clk 0:02:39.7]} 10. Nbxd2 {[%clk 0:03:01.6]} 10... O-O {[%clk 0:02:39.6]} 11.
O-O {[%clk 0:03:00.9]} 11... Bg4 {[%clk 0:02:34.7]} 12. Qa4 {[%clk 0:02:59.4]}
12... Bxd2 {[%clk 0:02:09.5]} 13. Nxd2 {[%clk 0:02:58.3]} 13... Qg5 {[%clk
0:02:02.6]} 14. f4 {[%clk 0:02:51.6]} 14... Qg6 {[%clk 0:01:59.6]} 15. Nf3
{[%clk 0:02:34.5]} 15... a6 {[%clk 0:01:43.9]} 16. Bxc6 {[%clk 0:02:27.3]} 16...
bxc6 {[%clk 0:01:44.8]} 17. Rac1 {[%clk 0:02:23.5]} 17... Qe4 {[%clk 0:01:37.8]}
18. Nh4 {[%clk 0:01:26]} 18... Be2 {[%clk 0:01:16.6]} 19. Rfe1 {[%clk
0:01:15.7]} 19... Qe3+ {[%clk 0:01:16.1]} 20. Kh1 {[%clk 0:01:13.3]} 20... Qxf4
{[%clk 0:01:11.5]} 21. Rxe2 {[%clk 0:01:11.8]} 21... Qxc1+ {[%clk 0:01:11]} 0-1

[Event "*** Titled Tuesday Blitz"]
[Site "Chess.com"]
[Date "2020.11.10"]
[Round "10"]
[White "Stormeman100100"]
[Black "vladimirssvesnikovs"]
[Result "0-1"]
[WhiteElo "2541"]
[BlackElo "2371"]
[TimeControl "180+1"]
[EndTime "11:59:48 PST"]
[Termination "vladimirssvesnikovs won by resignation"]

1. d4 {[%clk 0:03:00.9]} 1... d5 {[%clk 0:02:57]} 2. c4 {[%clk 0:02:59.9]} 2...
e6 {[%clk 0:02:57.1]} 3. Nf3 {[%clk 0:02:58]} 3... Nf6 {[%clk 0:02:56.9]} 4. g3
{[%clk 0:02:57.9]} 4... dxc4 {[%clk 0:02:57]} 5. Bg2 {[%clk 0:02:56.7]} 5... c5
{[%clk 0:02:57.3]} 6. O-O {[%clk 0:02:56.2]} 6... Nc6 {[%clk 0:02:57.5]} 7. dxc5
{[%clk 0:02:41.5]} 7... Qxd1 {[%clk 0:02:58.4]} 8. Rxd1 {[%clk 0:02:40.9]} 8...
Bxc5 {[%clk 0:02:59]} 9. Nbd2 {[%clk 0:02:41.2]} 9... c3 {[%clk 0:02:59.3]} 10.
bxc3 {[%clk 0:02:42.1]} 10... O-O {[%clk 0:02:59.4]} 11. Nb3 {[%clk 0:02:41.1]}
11... Be7 {[%clk 0:02:59.5]} 12. Nfd4 {[%clk 0:02:40]} 12... Nxd4 {[%clk
0:02:57.9]} 13. cxd4 {[%clk 0:02:40.9]} 13... Nd5 {[%clk 0:02:57.9]} 14. Bd2
{[%clk 0:02:37.6]} 14... f5 {[%clk 0:02:58]} 15. Rac1 {[%clk 0:02:27]} 15... b6
{[%clk 0:02:58]} 16. Rc2 {[%clk 0:02:05.8]} 16... Ba6 {[%clk 0:02:56.3]} 17. Be1
{[%clk 0:01:59.4]} 17... Rac8 {[%clk 0:02:52.7]} 18. Rdc1 {[%clk 0:01:59.4]}
18... Rxc2 {[%clk 0:02:51.3]} 19. Rxc2 {[%clk 0:02:00.3]} 19... Rc8 {[%clk
0:02:49.9]} 20. Rxc8+ {[%clk 0:01:54.1]} 20... Bxc8 {[%clk 0:02:50.8]} 21. e4
{[%clk 0:01:52.5]} 21... fxe4 {[%clk 0:02:48.6]} 22. Bxe4 {[%clk 0:01:53.4]}
22... a5 {[%clk 0:02:46]} 23. Bf3 {[%clk 0:01:46.4]} 23... Ba6 {[%clk
0:02:36.2]} 24. Kg2 {[%clk 0:01:43.6]} 24... Bc4 {[%clk 0:02:34]} 25. Nc1 {[%clk
0:01:43.3]} 25... Bb4 {[%clk 0:01:42.6]} 26. Bxb4 {[%clk 0:01:20.6]} 26... Nxb4
{[%clk 0:01:39.7]} 27. a4 {[%clk 0:01:20.7]} 27... Nc2 {[%clk 0:01:32.2]} 28.
Be2 {[%clk 0:01:16.4]} 28... Bd5+ {[%clk 0:01:24.2]} 29. Bf3 {[%clk 0:01:16.3]}
29... Ne1+ {[%clk 0:01:23]} 0-1

[Event "*** Titled Tuesday Blitz"]
[Site "Chess.com"]
[Date "2020.11.10"]
[Round "10"]
[White "esapunov"]
[Black "youngKID"]
[Result "0-1"]
[WhiteElo "2715"]
[BlackElo "2845"]
[TimeControl "180+1"]
[EndTime "11:59:50 PST"]
[Termination "youngKID won by resignation"]

1. c4 {[%clk 0:03:00.9]} 1... f5 {[%clk 0:02:57.2]} 2. Nf3 {[%clk 0:03:00.1]}
2... Nf6 {[%clk 0:02:57.4]} 3. Nc3 {[%clk 0:02:59.5]} 3... g6 {[%clk 0:02:57.8]}
4. d4 {[%clk 0:02:58.6]} 4... Bg7 {[%clk 0:02:58.2]} 5. Bf4 {[%clk 0:02:58.8]}
5... O-O {[%clk 0:02:58.2]} 6. h3 {[%clk 0:02:58.9]} 6... d6 {[%clk 0:02:56.2]}
7. e3 {[%clk 0:02:59.4]} 7... Qe8 {[%clk 0:02:55.7]} 8. Be2 {[%clk 0:02:58.1]}
8... Nbd7 {[%clk 0:02:55.4]} 9. Bh2 {[%clk 0:02:57.9]} 9... c6 {[%clk
0:02:54.2]} 10. O-O {[%clk 0:02:57.1]} 10... e5 {[%clk 0:02:54]} 11. Rc1 {[%clk
0:02:54.9]} 11... e4 {[%clk 0:02:51.2]} 12. Nd2 {[%clk 0:02:54.6]} 12... Qe6
{[%clk 0:02:44.5]} 13. d5 {[%clk 0:02:50.9]} 13... Qe7 {[%clk 0:02:42.7]} 14.
dxc6 {[%clk 0:02:50.7]} 14... bxc6 {[%clk 0:02:43.6]} 15. Nb3 {[%clk 0:02:47.7]}
15... Ne5 {[%clk 0:02:43.5]} 16. Nd4 {[%clk 0:02:43]} 16... Bd7 {[%clk 0:02:42]}
17. b4 {[%clk 0:02:42.8]} 17... g5 {[%clk 0:02:38.5]} 18. c5 {[%clk 0:02:37]}
18... d5 {[%clk 0:02:37.3]} 19. b5 {[%clk 0:02:37]} 19... cxb5 {[%clk
0:02:34.6]} 20. Bxe5 {[%clk 0:02:28.4]} 20... Qxe5 {[%clk 0:02:33]} 21. c6
{[%clk 0:02:28.7]} 21... Bc8 {[%clk 0:02:29.3]} 22. Ndxb5 {[%clk 0:02:14.7]}
22... f4 {[%clk 0:02:27.6]} 23. Qd4 {[%clk 0:02:14.2]} 23... Qf5 {[%clk
0:02:17.8]} 24. Nd6 {[%clk 0:02:12.9]} 24... Qe6 {[%clk 0:02:18]} 25. Nxc8
{[%clk 0:02:10.9]} 25... Raxc8 {[%clk 0:02:18.9]} 26. Nb5 {[%clk 0:01:47.3]}
26... f3 {[%clk 0:02:16.3]} 27. gxf3 {[%clk 0:01:32.1]} 27... Qxh3 {[%clk
0:02:14.9]} 28. fxe4 {[%clk 0:01:13]} 28... Ng4 {[%clk 0:02:09.3]} 29. Qxd5+
{[%clk 0:01:12.2]} 29... Kh8 {[%clk 0:02:09.8]} 30. Qd6 {[%clk 0:00:47.2]} 30...
Be5 {[%clk 0:02:06.8]} 0-1

[Event "*** Titled Tuesday Blitz"]
[Site "Chess.com"]
[Date "2020.11.10"]
[Round "10"]
[White "Vanina1989"]
[Black "swimmerchess"]
[Result "1-0"]
[WhiteElo "2653"]
[BlackElo "2810"]
[TimeControl "180+1"]
[EndTime "12:00:21 PST"]
[Termination "Vanina1989 won by resignation"]

1. d4 {[%clk 0:03:00.9]} 1... Nf6 {[%clk 0:02:58.7]} 2. c4 {[%clk 0:03:01.2]}
2... g6 {[%clk 0:02:57.9]} 3. Nf3 {[%clk 0:03:00.6]} 3... Bg7 {[%clk 0:02:57.6]}
4. Nc3 {[%clk 0:03:01]} 4... O-O {[%clk 0:02:57.7]} 5. e4 {[%clk 0:03:01.5]}
5... d6 {[%clk 0:02:57.9]} 6. Be2 {[%clk 0:03:01.9]} 6... e5 {[%clk 0:02:56.9]}
7. O-O {[%clk 0:03:02.6]} 7... Nc6 {[%clk 0:02:56.4]} 8. Be3 {[%clk 0:03:02.4]}
8... Ng4 {[%clk 0:02:55.4]} 9. Bg5 {[%clk 0:03:02.7]} 9... f6 {[%clk 0:02:55]}
10. Bh4 {[%clk 0:03:03.2]} 10... g5 {[%clk 0:02:54.2]} 11. Bg3 {[%clk
0:03:02.2]} 11... Nh6 {[%clk 0:02:53.1]} 12. dxe5 {[%clk 0:02:59.7]} 12... Nxe5
{[%clk 0:02:47.7]} 13. Nd5 {[%clk 0:02:55.1]} 13... Ng6 {[%clk 0:02:42.5]} 14.
Nd4 {[%clk 0:02:52.4]} 14... f5 {[%clk 0:02:40.9]} 15. exf5 {[%clk 0:02:50.2]}
15... Nxf5 {[%clk 0:02:41.8]} 16. Nxf5 {[%clk 0:02:50.4]} 16... Bxf5 {[%clk
0:02:42.7]} 17. Qb3 {[%clk 0:02:45.7]} 17... Rb8 {[%clk 0:02:24.1]} 18. Rae1
{[%clk 0:02:41.1]} 18... Qd7 {[%clk 0:02:22.2]} 19. Bh5 {[%clk 0:02:34]} 19...
Ne5 {[%clk 0:02:20.9]} 20. Qe3 {[%clk 0:02:22.7]} 20... Nxc4 {[%clk 0:02:17.2]}
21. Qxg5 {[%clk 0:02:21.8]} 21... Ne5 {[%clk 0:02:06.4]} 22. Bxe5 {[%clk
0:02:03.5]} 22... dxe5 {[%clk 0:02:07.3]} 23. Rxe5 {[%clk 0:02:03.5]} 23... Be6
{[%clk 0:01:26.8]} 24. Rfe1 {[%clk 0:01:54.4]} 24... h6 {[%clk 0:00:54.3]} 25.
Qg6 {[%clk 0:01:33.7]} 25... Bxd5 {[%clk 0:00:45]} 26. Re7 {[%clk 0:01:33.5]}
26... Bf7 {[%clk 0:00:44.5]} 27. Qxf7+ {[%clk 0:01:22]} 27... Rxf7 {[%clk
0:00:44.2]} 28. Bxf7+ {[%clk 0:01:22.1]} 1-0

[Event "*** Titled Tuesday Blitz"]
[Site "Chess.com"]
[Date "2020.11.10"]
[Round "10"]
[White "Zkid"]
[Black "joppie2"]
[Result "1-0"]
[WhiteElo "2811"]
[BlackElo "2957"]
[TimeControl "180+1"]
[EndTime "12:00:23 PST"]
[Termination "Zkid won by resignation"]

1. e4 {[%clk 0:03:00.9]} 1... e5 {[%clk 0:02:58.9]} 2. Nf3 {[%clk 0:03:00.7]}
2... Nc6 {[%clk 0:02:57.6]} 3. Bc4 {[%clk 0:03:00.8]} 3... Bc5 {[%clk
0:02:56.3]} 4. d3 {[%clk 0:03:00]} 4... Nf6 {[%clk 0:02:56.6]} 5. h3 {[%clk
0:02:57.7]} 5... d6 {[%clk 0:02:56.5]} 6. c3 {[%clk 0:02:57]} 6... a6 {[%clk
0:02:56.3]} 7. a4 {[%clk 0:02:56.6]} 7... Ba7 {[%clk 0:02:56.7]} 8. b4 {[%clk
0:02:55.2]} 8... h6 {[%clk 0:02:56.7]} 9. Nbd2 {[%clk 0:02:53.1]} 9... Ne7
{[%clk 0:02:56.1]} 10. Nf1 {[%clk 0:02:46.3]} 10... Ng6 {[%clk 0:02:56.2]} 11.
Ng3 {[%clk 0:02:37]} 11... O-O {[%clk 0:02:56.3]} 12. O-O {[%clk 0:02:35.4]}
12... c6 {[%clk 0:02:55.6]} 13. Bb3 {[%clk 0:02:29.1]} 13... d5 {[%clk
0:02:55.5]} 14. Re1 {[%clk 0:02:21.5]} 14... Re8 {[%clk 0:02:54.1]} 15. Be3
{[%clk 0:02:14.5]} 15... Bxe3 {[%clk 0:02:52.9]} 16. Rxe3 {[%clk 0:02:14.1]}
16... Be6 {[%clk 0:02:52.1]} 17. exd5 {[%clk 0:02:10.7]} 17... Nxd5 {[%clk
0:02:48.1]} 18. Bxd5 {[%clk 0:02:01.9]} 18... Bxd5 {[%clk 0:02:49]} 19. c4
{[%clk 0:01:44.9]} 19... Bxf3 {[%clk 0:02:46.4]} 20. Qxf3 {[%clk 0:01:44.8]}
20... Qd6 {[%clk 0:02:33.4]} 21. Rb1 {[%clk 0:01:39]} 21... Rad8 {[%clk
0:02:33.1]} 22. Nf5 {[%clk 0:01:33.9]} 22... Qd7 {[%clk 0:02:27.5]} 23. Qg4
{[%clk 0:01:26.7]} 23... Re6 {[%clk 0:02:03.9]} 24. Rf3 {[%clk 0:01:19]} 24...
Kh7 {[%clk 0:01:42.9]} 25. h4 {[%clk 0:01:15.3]} 25... Rg8 {[%clk 0:01:43.5]}
26. h5 {[%clk 0:01:09]} 26... Nf4 {[%clk 0:01:39.4]} 27. Rg3 {[%clk 0:01:03.1]}
27... Rf6 {[%clk 0:01:29.4]} 28. Nxh6 {[%clk 0:00:59.2]} 28... Qe6 {[%clk
0:01:10.5]} 29. Nxg8 {[%clk 0:00:55.4]} 1-0

[Event "*** Titled Tuesday Blitz"]
[Site "Chess.com"]
[Date "2020.11.10"]
[Round "10"]
[White "PavelShkapenko"]
[Black "SantoBlue"]
[Result "1/2-1/2"]
[WhiteElo "2673"]
[BlackElo "2895"]
[TimeControl "180+1"]
[EndTime "12:00:29 PST"]
[Termination "Game drawn by repetition"]

1. e4 {[%clk 0:03:00.9]} 1... e5 {[%clk 0:02:58.7]} 2. Nf3 {[%clk 0:02:59.9]}
2... Nc6 {[%clk 0:02:59.6]} 3. Bc4 {[%clk 0:02:59.5]} 3... Nf6 {[%clk
0:02:59.4]} 4. Ng5 {[%clk 0:02:58.2]} 4... d5 {[%clk 0:02:58.5]} 5. exd5 {[%clk
0:02:59.1]} 5... Na5 {[%clk 0:02:58.7]} 6. Bb5+ {[%clk 0:02:59.2]} 6... c6
{[%clk 0:02:59]} 7. dxc6 {[%clk 0:03:00]} 7... bxc6 {[%clk 0:02:59.9]} 8. Bd3
{[%clk 0:02:59.9]} 8... Nd5 {[%clk 0:02:57.8]} 9. Nf3 {[%clk 0:02:59.3]} 9...
Bd6 {[%clk 0:02:56.5]} 10. O-O {[%clk 0:02:58.9]} 10... O-O {[%clk 0:02:55.7]}
11. Re1 {[%clk 0:02:58.9]} 11... Re8 {[%clk 0:02:55.6]} 12. Nc3 {[%clk
0:02:49.8]} 12... Bg4 {[%clk 0:02:55.7]} 13. Be2 {[%clk 0:02:23.9]} 13... Nf4
{[%clk 0:02:54.7]} 14. d3 {[%clk 0:02:22.5]} 14... Nxe2+ {[%clk 0:02:52.9]} 15.
Qxe2 {[%clk 0:02:22.2]} 15... f5 {[%clk 0:02:53.8]} 16. Qe3 {[%clk 0:02:05.5]}
16... c5 {[%clk 0:02:50.3]} 17. h3 {[%clk 0:02:04.5]} 17... Bh5 {[%clk
0:02:50.2]} 18. Qg5 {[%clk 0:02:04.4]} 18... Bxf3 {[%clk 0:02:48.9]} 19. Qxd8
{[%clk 0:02:03.2]} 19... Raxd8 {[%clk 0:02:49.8]} 20. gxf3 {[%clk 0:02:03.1]}
20... Nc6 {[%clk 0:02:50.7]} 21. Nb5 {[%clk 0:01:46]} 21... Bb8 {[%clk
0:02:48.2]} 22. Be3 {[%clk 0:01:39.1]} 22... Re6 {[%clk 0:02:44]} 23. Bxc5
{[%clk 0:01:28.3]} 23... Rg6+ {[%clk 0:02:43.9]} 24. Kf1 {[%clk 0:01:27.7]}
24... Rd5 {[%clk 0:02:44.8]} 25. b4 {[%clk 0:01:25.9]} 25... Nxb4 {[%clk
0:02:42]} 26. Bxb4 {[%clk 0:01:25.7]} 26... Rxb5 {[%clk 0:02:42.3]} 27. Rab1
{[%clk 0:01:24]} 27... Rgb6 {[%clk 0:02:41.7]} 28. a3 {[%clk 0:01:22.1]} 28...
Rb7 {[%clk 0:02:41.9]} 29. Ra1 {[%clk 0:01:02.5]} 29... a5 {[%clk 0:02:40.9]}
30. Bd2 {[%clk 0:00:56.4]} 30... Rb2 {[%clk 0:02:38]} 31. Rec1 {[%clk
0:00:53.7]} 31... Rc7 {[%clk 0:02:36.2]} 32. Bxa5 {[%clk 0:00:50.5]} 32... Rcxc2
{[%clk 0:02:36.1]} 33. Rxc2 {[%clk 0:00:50.5]} 33... Rxc2 {[%clk 0:02:37]} 34.
Bb6 {[%clk 0:00:49.3]} 34... Rb2 {[%clk 0:02:34.1]} 35. Bc5 {[%clk 0:00:48.7]}
35... Rc2 {[%clk 0:02:34]} 36. Bb6 {[%clk 0:00:48.4]} 36... Rb2 {[%clk
0:02:32.7]} 37. Bc5 {[%clk 0:00:48.2]} 37... Kf7 {[%clk 0:02:29.4]} 38. a4
{[%clk 0:00:47.6]} 38... Ke6 {[%clk 0:02:30]} 39. a5 {[%clk 0:00:46.7]} 39...
Kd5 {[%clk 0:02:30.5]} 40. Bb6 {[%clk 0:00:46.1]} 40... g5 {[%clk 0:02:28.6]}
41. Rc1 {[%clk 0:00:45.1]} 41... h5 {[%clk 0:02:27.7]} 42. Rc5+ {[%clk
0:00:43.7]} 42... Ke6 {[%clk 0:02:27.3]} 43. Rc6+ {[%clk 0:00:38.7]} 43... Kd5
{[%clk 0:02:27]} 44. Rc5+ {[%clk 0:00:38.3]} 44... Ke6 {[%clk 0:02:27.3]} 45.
Rc6+ {[%clk 0:00:38.4]} 45... Kd5 {[%clk 0:02:09.4]} 46. Rc5+ {[%clk 0:00:38.2]}
1/2-1/2